fUSD/lending_fUSD_20250502
["ID","MTS","AMOUNT","RATE_DAILY","PERIOD"]
[359652294,1746220245645,-522.63,0.00019989,2]
[359652295,1746220245654,-450.0,0.00019989,2]
[359652296,1746220245663,-472.09,0.00019989,2]
[359652297,1746220245672,-957.74,0.00019989,2]
[359652298,1746220245681,-450.0,0.00019989,2]
[359652299,1746220245690,-229.73,0.00019989,2]
[359652300,1746220245699,-450.0,0.00019989,2]
[359652301,1746220245708,-450.0,0.00019989,2]
[359652302,1746220245717,-450.0,0.00019989,2]
[359652303,1746220245727,-450.0,0.00019989,2]
[359652304,1746220245736,-450.0,0.00019989,2]
[359652305,1746220245746,-450.0,0.00019989,2]
[359652306,1746220245755,-450.0,0.00019989,2]
[359652307,1746220245765,-450.0,0.00019989,2]
[359652308,1746220245777,-500.36,0.00019989,2]
[359652309,1746220245787,-5810.16,0.00019989,2]
[359652310,1746220245796,-450.0,0.00019989,2]
[359652311,1746220245807,-450.0,0.00019989,2]
[359652312,1746220245816,-450.0,0.00019989,2]
[359652313,1746220245825,-450.0,0.00019989,2]
[359652314,1746220245835,-450.0,0.00019989,2]
[359652315,1746220245845,-450.0,0.00019989,2]
[359652316,1746220245854,-450.0,0.00019989,2]
[359652317,1746220245864,-450.0,0.00019989,2]
[359652318,1746220245873,-465.31,0.00019989,2]
[359652319,1746220245883,-450.0,0.00019989,2]
[359652320,1746220245893,-450.0,0.00019989,2]
[359652321,1746220245902,-516.78,0.00019989,2]
[359652322,1746220245912,-450.0,0.00019989,2]
[359652323,1746220245921,-450.0,0.00019989,2]
[359652324,1746220245931,-450.0,0.00019989,2]
[359652325,1746220245941,-450.0,0.00019989,2]
[359652326,1746220245951,-450.0,0.00019989,2]
[359652327,1746220245960,-450.0,0.00019989,2]
[359652328,1746220245971,-450.0,0.00019989,2]
[359652329,1746220245980,-450.0,0.00019989,2]
[359652330,1746220245990,-508.51,0.00019989,2]
[359652331,1746220246001,-450.0,0.00019989,2]
[359652332,1746220246011,-450.0,0.00019989,2]
[359652333,1746220246021,-450.0,0.00019989,2]
[359652334,1746220246030,-450.0,0.00019989,2]
[359652335,1746220246039,-494.5,0.00019989,2]
[359652336,1746220246049,-573.95,0.00019989,2]
[359652337,1746220246059,-450.0,0.00019989,2]
[359652339,1746220246068,-450.0,0.00019989,2]
[359652341,1746220246078,-693.87,0.00019989,2]
[359652343,1746220246087,-450.0,0.00019989,2]
[359652345,1746220246097,-450.0,0.00019989,2]
[359652347,1746220246107,-450.0,0.00019989,2]
[359652349,1746220246116,-450.0,0.00019989,2]
[359652351,1746220246125,-450.0,0.00019989,2]
[359652353,1746220246135,-450.0,0.00019989,2]
[359652355,1746220246145,-1215.28,0.00019989,2]
[359652357,1746220246155,-451.89,0.00019989,2]
[359652359,1746220246164,-450.0,0.00019989,2]
[359652361,1746220246173,-2176.26,0.00019989,2]
[359652363,1746220246183,-1122.6,0.00019989,2]
[359652365,1746220246192,-450.0,0.00019989,2]
[359652367,1746220246201,-500.57,0.00019989,2]
[359652369,1746220246210,-5001.26,0.00019989,2]
[359652371,1746220246220,-450.0,0.00019989,2]
[359652372,1746220246229,-450.0,0.00019989,2]
[359652373,1746220246238,-450.0,0.00019989,2]
[359652374,1746220246247,-1023.9,0.00019989,2]
[359652375,1746220246256,-450.0,0.00019989,2]
[359652376,1746220246265,-450.0,0.00019989,2]
[359652377,1746220246275,-450.0,0.00019989,2]
[359652378,1746220246283,-450.0,0.00019989,2]
[359652379,1746220246293,-450.0,0.00019989,2]
[359652380,1746220246303,-450.0,0.00019989,2]
[359652381,1746220246312,-450.0,0.00019989,2]
[359652382,1746220246322,-462.72,0.00019989,2]
[359652383,1746220246331,-708.68,0.00019989,2]
[359652384,1746220246341,-532.36,0.00019989,2]
[359652385,1746220246350,-450.0,0.00019989,2]
[359652386,1746220246360,-450.0,0.00019989,2]
[359652387,1746220246369,-527.93,0.00019989,2]
[359652388,1746220246379,-450.0,0.00019989,2]
[359652389,1746220246388,-1558.32,0.00019989,2]
[359652390,1746220246398,-450.0,0.00019989,2]
[359652391,1746220246407,-1035.45,0.00019989,2]
[359652392,1746220246416,-1422.86,0.00019989,2]
[359652393,1746220246426,-450.0,0.00019989,2]
[359652394,1746220246435,-894.130531,0.00019989,2]
[359652395,1746220246444,-450.0,0.00019989,2]
[359652396,1746220246454,-450.0,0.00019989,2]
[359652397,1746220246463,-1673.56,0.00019989,2]
[359652398,1746220246473,-450.0,0.00019989,2]
[359652399,1746220246482,-1654.4,0.00019989,2]
[359652400,1746220246492,-450.0,0.00019989,2]
[359652401,1746220246501,-450.0,0.00019989,2]
[359652402,1746220246510,-988.67,0.00019989,2]
[359652403,1746220246519,-450.0,0.00019989,2]
[359652404,1746220246529,-450.0,0.00019989,2]
[359652405,1746220246538,-450.0,0.00019989,2]
[359652406,1746220246548,-1442.55,0.00019989,2]
[359652407,1746220246557,-450.0,0.00019989,2]
[359652408,1746220246567,-525.31,0.00019989,2]
[359652409,1746220246576,-632.544366,0.00019989,2]
[359652410,1746220246587,-450.0,0.00019989,2]
[359652411,1746220246596,-450.0,0.00019989,2]
[359652412,1746220246605,-450.0,0.00019989,2]
[359652413,1746220246615,-542.66,0.00019989,2]
[359652414,1746220246624,-450.0,0.00019989,2]
[359652415,1746220246633,-544.22,0.00019989,2]
[359652416,1746220246642,-1074.92705239,0.0001999,2]
[359652417,1746220246652,-610.38,0.0001999,2]
[359652418,1746220246661,-450.0,0.0001999,2]
[359652419,1746220246670,-450.0,0.0001999,2]
[359652420,1746220246679,-450.0,0.0001999,2]
[359652421,1746220246689,-450.0,0.0001999,2]
[359652422,1746220246698,-450.0,0.0001999,2]
[359652423,1746220246708,-450.0,0.0001999,2]
[359652424,1746220246718,-450.0,0.0001999,2]
[359652425,1746220246727,-450.0,0.0001999,2]
[359652426,1746220246737,-450.0,0.0001999,2]
[359652427,1746220246745,-450.0,0.0001999,2]
[359652428,1746220246754,-450.0,0.0001999,2]
[359652429,1746220246766,-818.66,0.0001999,2]
[359652430,1746220246776,-450.0,0.0001999,2]
[359652431,1746220246785,-450.0,0.0001999,2]
[359652432,1746220246795,-578.76,0.0001999,2]
[359652433,1746220246804,-450.0,0.0001999,2]
[359652434,1746220246814,-1050.97,0.0001999,2]
[359652435,1746220246824,-488.13,0.0001999,2]
[359652436,1746220246833,-450.0,0.0001999,2]
[359652437,1746220246846,-450.0,0.0001999,2]
[359652438,1746220246855,-450.0,0.0001999,2]
[359652439,1746220246865,-450.0,0.0001999,2]
[359652440,1746220246874,-300.0,0.0001999,2]
[359652441,1746220246883,-529.65,0.0001999,2]
[359652442,1746220246892,-450.0,0.0001999,2]
[359652443,1746220246902,-873.99,0.0001999,2]
[359652444,1746220246911,-450.0,0.0001999,2]
[359652445,1746220246921,-666.86,0.0001999,2]
[359652446,1746220246930,-450.0,0.0001999,2]
[359652447,1746220246939,-450.0,0.0001999,2]
[359652448,1746220246948,-450.0,0.0001999,2]
[359652449,1746220246958,-450.0,0.0001999,2]
[359652450,1746220246967,-443.38565678,0.0001999,2]
[359652451,1746220246976,-528.34,0.0001999,2]
[359652452,1746220246986,-450.0,0.0001999,2]
[359652453,1746220246994,-450.0,0.0001999,2]
[359652454,1746220247003,-450.0,0.0001999,2]
[359652455,1746220247012,-450.0,0.0001999,2]
[359652456,1746220247021,-2646.47,0.0001999,2]
[359652457,1746220247031,-450.0,0.0001999,2]
[359652458,1746220247040,-450.0,0.0001999,2]
[359652459,1746220247049,-450.0,0.0001999,2]
[359652460,1746220247058,-481.78,0.0001999,2]
[359652461,1746220247068,-450.0,0.0001999,2]
[359652462,1746220247077,-450.0,0.0001999,2]
[359652463,1746220247087,-1100.77,0.0001999,2]
[359652464,1746220247097,-450.0,0.0001999,2]
[359652465,1746220247106,-450.0,0.0001999,2]
[359652466,1746220247116,-450.0,0.0001999,2]
[359652467,1746220247126,-450.0,0.0001999,2]
[359652468,1746220247136,-450.0,0.0001999,2]
[359652469,1746220247146,-450.0,0.0001999,2]
[359652470,1746220247156,-1150.01,0.0001999,2]
[359652471,1746220247166,-450.0,0.0001999,2]
[359652472,1746220247175,-450.0,0.0001999,2]
[359652473,1746220247184,-450.0,0.0001999,2]
[359652474,1746220247194,-450.0,0.0001999,2]
[359652475,1746220247204,-450.0,0.0001999,2]
[359652476,1746220247214,-661.43,0.0001999,2]
[359652477,1746220247223,-450.0,0.0001999,2]
[359652478,1746220247232,-450.0,0.0001999,2]
[359652479,1746220247242,-450.0,0.0001999,2]
[359652480,1746220247252,-450.0,0.0001999,2]
[359652481,1746220247261,-482.35312224,0.0001999,2]
[359652482,1746220247271,-450.0,0.0001999,2]
[359652483,1746220247280,-454.72,0.0001999,2]
[359652484,1746220247289,-744.58,0.0001999,2]
[359652485,1746220247299,-450.0,0.0001999,2]
[359652486,1746220247308,-466.53,0.0001999,2]
[359652487,1746220247318,-531.6,0.0001999,2]
[359652488,1746220247327,-450.0,0.0001999,2]
[359652489,1746220247337,-450.0,0.0001999,2]
[359652490,1746220247347,-543.79,0.0001999,2]
[359652491,1746220247357,-450.0,0.0001999,2]
[359652492,1746220247367,-450.0,0.0001999,2]
[359652493,1746220247377,-450.0,0.0001999,2]
[359652494,1746220247387,-450.0,0.0001999,2]
[359652495,1746220247396,-450.0,0.0001999,2]
[359652496,1746220247406,-632.92,0.0001999,2]
[359652497,1746220247415,-450.0,0.0001999,2]
[359652498,1746220247425,-450.0,0.0001999,2]
[359652499,1746220247434,-170.87322706,0.0001999,2]
[359652500,1746220247444,-450.0,0.0001999,2]
[359652501,1746220247453,-320.94152436,0.0001999,2]
[359652502,1746220247462,-1129.74,0.0001999,2]
[359652503,1746220247471,-450.0,0.0001999,2]
[359652504,1746220247481,-450.0,0.0001999,2]
[359652505,1746220247490,-450.0,0.0001999,2]
[359652506,1746220247499,-616.44,0.0001999,2]
[359652507,1746220247508,-603.13,0.0001999,2]
[359652508,1746220247518,-1549.33,0.0001999,2]
[359652509,1746220247527,-450.0,0.0001999,2]
[359652510,1746220247536,-450.0,0.0001999,2]
[359652511,1746220247546,-450.0,0.0001999,2]
[359652512,1746220247556,-764.81,0.0001999,2]
[359652513,1746220247565,-450.0,0.0001999,2]
[359652514,1746220247575,-591.92,0.0001999,2]
[359652515,1746220247584,-450.0,0.0001999,2]
[359652516,1746220247593,-450.0,0.0001999,2]
[359652517,1746220247603,-541.44,0.0001999,2]
[359652518,1746220247612,-450.0,0.0001999,2]
[359652519,1746220247622,-515.88,0.0001999,2]
[359652520,1746220247631,-450.0,0.0001999,2]
[359652521,1746220247640,-450.0,0.0001999,2]
[359652522,1746220247649,-450.0,0.0001999,2]
[359652523,1746220247659,-749.4,0.0001999,2]
[359652524,1746220247668,-450.0,0.0001999,2]
[359652525,1746220247678,-627.79,0.0001999,2]
[359652526,1746220247687,-450.0,0.0001999,2]
[359652527,1746220247696,-450.0,0.0001999,2]
[359652528,1746220247706,-450.0,0.0001999,2]
[359652529,1746220247715,-758.54,0.0001999,2]
[359652530,1746220247724,-1829.26,0.0001999,2]
[359652531,1746220247734,-150.0,0.0001999,2]
[359652532,1746220247743,-500.0,0.0001999,2]
[359652533,1746220247753,-748.81,0.0001999,2]
[359652534,1746220247764,-423.0,0.0001999,2]
[359652535,1746220247774,-150.0,0.0001999,2]
[359652536,1746220247783,-450.0,0.0001999,2]
[359652537,1746220247793,-628.02,0.0001999,2]
[359652538,1746220247802,-500.0,0.0001999,2]
[359652539,1746220247812,-150.0,0.0001999,2]
[359652540,1746220247822,-500.0,0.0001999,2]
[359652541,1746220247831,-669.55,0.0001999,2]
[359652542,1746220247843,-503.35,0.0001999,2]
[359652543,1746220247852,-810.72,0.0001999,2]
[359652544,1746220247862,-1183.08,0.0001999,2]
[359652545,1746220247871,-450.0,0.0001999,2]
[359652546,1746220247881,-450.0,0.0001999,2]
[359652547,1746220247890,-450.0,0.0001999,2]
[359652548,1746220247900,-450.0,0.0001999,2]
[359652549,1746220247909,-450.0,0.0001999,2]
[359652550,1746220247919,-450.0,0.0001999,2]
[359652551,1746220247928,-450.0,0.0001999,2]
[359652552,1746220247938,-450.0,0.0001999,2]
[359652553,1746220247948,-450.0,0.0001999,2]
[359652554,1746220247958,-587.2,0.0001999,2]
[359652555,1746220247967,-450.0,0.0001999,2]
[359652556,1746220247976,-796.21,0.0001999,2]
[359652557,1746220247986,-450.0,0.0001999,2]
[359652558,1746220247995,-542.67,0.0001999,2]
[359652559,1746220248004,-470.86,0.0001999,2]
[359652560,1746220248014,-969.79,0.0001999,2]
[359652561,1746220248023,-450.0,0.0001999,2]
[359652562,1746220248034,-450.0,0.0001999,2]
[359652563,1746220248043,-450.0,0.0001999,2]
[359652564,1746220248053,-450.0,0.0001999,2]
[359652565,1746220248063,-1221.11,0.0001999,2]
[359652566,1746220248073,-450.0,0.0001999,2]
[359652567,1746220248083,-4532.13,0.0001999,2]
[359652568,1746220248093,-497.76,0.0001999,2]
[359652569,1746220248103,-969.11,0.0001999,2]
[359652570,1746220248113,-4213.98,0.0001999,2]
[359652571,1746220248232,-590.88,0.0001999,2]
[359652572,1746220248252,-502.55,0.0001999,2]
[359652573,1746220248262,-450.0,0.0001999,2]
[359652574,1746220248273,-487.34,0.0001999,2]
[359652575,1746220248283,-1609.65,0.0001999,2]
[359652576,1746220248293,-450.0,0.0001999,2]
[359652577,1746220248303,-450.0,0.0001999,2]
[359652578,1746220248313,-663.69,0.0001999,2]
[359652579,1746220248322,-450.0,0.0001999,2]
[359652580,1746220248332,-104641.84,0.0001999,2]
[359652581,1746220248342,-613.6,0.0001999,2]
[359652582,1746220248352,-549.14,0.0001999,2]
[359652583,1746220248362,-529.17,0.0001999,2]
[359652584,1746220248372,-4529.4,0.0001999,2]
[359652585,1746220248383,-450.0,0.0001999,2]
[359652586,1746220248392,-450.0,0.0001999,2]
[359652587,1746220248402,-88814.47,0.0001999,2]
[359652588,1746220248412,-150.0,0.0001999,2]
[359652589,1746220248421,-150.0,0.0001999,2]
[359652590,1746220248431,-450.0,0.0001999,2]
[359652591,1746220248441,-500.0,0.0001999,2]
[359652592,1746220248450,-450.0,0.0001999,2]
[359652593,1746220248460,-150.0,0.0001999,2]
[359652594,1746220248470,-5164.21,0.0001999,2]
[359652595,1746220248480,-500.0,0.0001999,2]
[359652596,1746220248490,-450.0,0.0001999,2]
[359652597,1746220248499,-28785.72,0.0001999,2]
[359652598,1746220248509,-450.0,0.0001999,2]
[359652599,1746220248519,-451.65,0.0001999,2]
[359652600,1746220248528,-1869.24,0.0001999,2]
[359652601,1746220248538,-516.88,0.0001999,2]
[359652602,1746220248548,-952.64,0.0001999,2]
[359652603,1746220248558,-16335.65,0.0001999,2]
[359652604,1746220248568,-797.36,0.0001999,2]
[359652605,1746220248578,-450.0,0.0001999,2]
[359652606,1746220248588,-450.0,0.0001999,2]
[359652607,1746220248598,-521.68,0.0001999,2]
[359652608,1746220248608,-450.0,0.0001999,2]
[359652609,1746220248618,-450.0,0.0001999,2]
[359652610,1746220248627,-2409.86,0.0001999,2]
[359652611,1746220248637,-500.0,0.0001999,2]
[359652612,1746220248646,-514.85,0.0001999,2]
[359652613,1746220248656,-3093.16,0.0001999,2]
[359652614,1746220248665,-500.0,0.0001999,2]
[359652615,1746220248675,-1062.11,0.0001999,2]
[359652616,1746220248684,-450.0,0.0001999,2]
[359652617,1746220248694,-150.0,0.0001999,2]
[359652618,1746220248704,-500.0,0.0001999,2]
[359652619,1746220248713,-723.9,0.0001999,2]
[359652620,1746220248723,-500.0,0.0001999,2]
[359652621,1746220248732,-500.62,0.0001999,2]
[359652622,1746220248742,-450.0,0.0001999,2]
[359652623,1746220248752,-150.0,0.0001999,2]
[359652624,1746220248762,-760.55,0.0001999,2]
[359652625,1746220248774,-450.0,0.0001999,2]
[359652626,1746220248783,-2277.71,0.0001999,2]
[359652627,1746220248793,-591.18,0.0001999,2]
[359652628,1746220248803,-450.0,0.0001999,2]
[359652629,1746220248814,-450.0,0.0001999,2]
[359652630,1746220248824,-715.5,0.0001999,2]
[359652631,1746220248833,-582.05,0.0001999,2]
[359652632,1746220248844,-450.0,0.0001999,2]
[359652633,1746220248853,-787.89,0.0001999,2]
[359652634,1746220248863,-574.35,0.0001999,2]
[359652635,1746220248874,-855.34,0.0001999,2]
[359652636,1746220248884,-450.0,0.0001999,2]
[359652637,1746220248894,-1074.92705239,0.0001999,2]
[359652638,1746220248904,-1074.92705239,0.0001999,2]
[359652639,1746220248914,-3807.79,0.0001999,2]
[359652640,1746220248924,-450.0,0.0001999,2]
[359652641,1746220248934,-450.0,0.0001999,2]
[359652642,1746220248944,-505.20523056,0.00019991,2]
[359652643,1746220248955,-1720.0,0.00019999,2]
[359652644,1746220248964,-500.0,0.00019999,2]
[359652645,1746220248974,-675.05638042,0.00019999,2]
[359652646,1746220248983,-500.0,0.00019999,2]
[359652647,1746220248992,-300.0,0.00019999,2]
[359652648,1746220249002,-300.0,0.00019999,2]
[359652649,1746220249011,-500.0,0.00019999,2]
[359652650,1746220249021,-450.0,0.00019999,2]
[359652651,1746220249031,-259.59690718,0.0002,2]
[359652652,1746220249040,-475511.30550696,0.0002,2]
[359652653,1746220249050,-2746638.9525179,0.0002,2]
[359652654,1746220249471,-1456.44762856,0.0002,2]
[359652655,1746220249492,-5000.0,0.0002,2]
[359652656,1746220249599,-161.07157221,0.00019711,2]
[359652657,1746220249608,-340.92842779,0.000199,2]
[359652658,1746220249892,-450.0,0.00019715,2]
[359652659,1746220249903,-151.0,0.00019898,2]
[359652660,1746220249912,-588.79770856,0.000199,2]
[359652661,1746220249922,-3219.9483807,0.0002,2]
[359652662,1746220694688,230.51158693,0.00018844,2]
[359652663,1746220694708,1598.39841307,0.00018844,2]
[359652664,1746220727153,475.74,0.00018832,2]
[359652665,1746220824676,200.0,0.00018825,2]
[359652666,1746220844902,154.84577473,0.00019,2]
[359652669,1746220974541,162.42,0.00018817,2]
[359652670,1746220979157,878.08,0.00018817,2]
[359652671,1746221051424,1000.0,0.00018814,2]
[359652673,1746221095303,165.29,0.000194,2]
[359652674,1746221105695,5365.2258122,0.00019,2]
[359652675,1746221105719,10000.0,0.00019,2]
[359652676,1746221105742,3216.1141878,0.00019,2]
[359652677,1746221107419,6783.8858122,0.00019,2]
[359652678,1746221107440,10000.0,0.00019,2]
[359652679,1746221107463,1797.4541878,0.00019,2]
[359652680,1746221109632,8202.5458122,0.00019,2]
[359652681,1746221109654,10000.0,0.00019,2]
[359652682,1746221109677,378.7941878,0.00019,2]
[359652683,1746221111161,1000.0,0.0003,30]
[359652684,1746221111404,1000.0,0.0003,30]
[359652685,1746221114979,1084.09,0.00018847,2]
[359652686,1746221117748,637.89,0.00016935,2]
[359652687,1746221118209,637.89,0.00019199,2]
[359652688,1746221168617,993.0133247,8e-05,2]
[359652690,1746221192244,520.9654575,0.00015,2]
[359652691,1746221198399,1893.24,0.00018766,2]
[359652692,1746221203038,3000.0,0.0003,30]
[359652693,1746221229919,3000.0,0.0003,30]
[359652697,1746221249983,1000.0,0.0003,30]
[359652698,1746221261662,250.0,0.00018754,7]
[359652699,1746221278321,3854.11703,0.0001,2]
[359652700,1746221278342,4145.88297,0.0001,2]
[359652701,1746221283279,1727.8,0.00018754,2]
[359652702,1746221293705,-27690.0,0.00019614,2]
[359652703,1746221309423,378.78711764,7.888e-05,2]
[359652704,1746221311767,207.4,0.00018754,2]
[359652710,1746221402594,250.0,0.00017,2]
[359652711,1746221403740,300.0,0.00019,2]
[359652719,1746221432319,-1200.0,0.00019613,2]
[359652720,1746221432328,-218.62427623,0.00019613,2]
[359652721,1746221432340,-81.37572377,0.00019613,2]
[359652722,1746221432349,-361.70337718,0.00019614,2]
[359652723,1746221432386,-28914.55606403,0.00019614,2]
[359652724,1746221432396,-250.0,0.00019614,2]
[359652725,1746221432406,-1121.56976764,0.00019614,2]
[359652726,1746221432415,-161.07157221,0.00019614,2]
[359652727,1746221432425,-4193.55520516,0.00019615,2]
[359652728,1746221432434,-1121.56976756,0.00019646,2]
[359652729,1746221432443,-4193.5552051,0.00019647,2]
[359652730,1746221432453,-1121.56976756,0.00019678,2]
[359652731,1746221432463,-4193.5552051,0.00019678,2]
[359652732,1746221432473,-1121.56976756,0.00019709,2]
[359652733,1746221432482,-694.63767808,0.0001971,2]
[359652734,1746221437828,-500.0,0.00019707,2]
[359652735,1746221437838,-500.0,0.00019707,2]
[359652736,1746221437847,-500.0,0.00019707,2]
[359652737,1746221437856,-500.0,0.00019707,2]
[359652738,1746221437865,-500.0,0.00019707,2]
[359652739,1746221437875,-500.0,0.00019707,2]
[359652740,1746221437884,-500.0,0.00019707,2]
[359652741,1746221437894,-500.0,0.00019707,2]
[359652742,1746221437903,-500.0,0.00019707,2]
[359652743,1746221437912,-500.0,0.00019707,2]
[359652744,1746221437922,-500.0,0.00019707,2]
[359652745,1746221437931,-500.0,0.00019707,2]
[359652746,1746221437940,-500.0,0.00019707,2]
[359652747,1746221437950,-500.0,0.00019707,2]
[359652748,1746221437959,-500.0,0.00019707,2]
[359652749,1746221437968,-500.0,0.00019707,2]
[359652750,1746221437977,-500.0,0.00019707,2]
[359652751,1746221437987,-500.0,0.00019707,2]
[359652752,1746221437995,-500.0,0.00019707,2]
[359652753,1746221438006,-500.0,0.00019707,2]
[359652754,1746221438015,-500.0,0.00019707,2]
[359652755,1746221438025,-500.0,0.00019707,2]
[359652756,1746221438035,-247.73593615,0.00019707,2]
[359652757,1746221438045,-500.0,0.00019707,2]
[359652758,1746221438055,-500.0,0.00019707,2]
[359652759,1746221438064,-500.0,0.00019707,2]
[359652760,1746221438073,-500.0,0.00019707,2]
[359652761,1746221438082,-500.0,0.00019707,2]
[359652762,1746221438091,-500.0,0.00019707,2]
[359652763,1746221438101,-500.0,0.00019707,2]
[359652765,1746221438110,-500.0,0.00019707,2]
[359652766,1746221438119,-500.0,0.00019707,2]
[359652767,1746221438128,-500.0,0.00019707,2]
[359652768,1746221438137,-500.0,0.00019707,2]
[359652769,1746221438146,-500.0,0.00019707,2]
[359652770,1746221438156,-500.0,0.00019707,2]
[359652772,1746221438166,-3498.91752702,0.0001971,2]
[359652774,1746221438175,-450.0,0.00019713,2]
[359652775,1746221438185,-450.0,0.00019713,2]
[359652776,1746221438195,-450.0,0.00019713,2]
[359652777,1746221438204,-7226.3,0.00019713,2]
[359652778,1746221438213,-450.0,0.00019713,2]
[359652779,1746221438222,-450.0,0.00019713,2]
[359652780,1746221438231,-450.0,0.00019713,2]
[359652781,1746221438239,-450.0,0.00019713,2]
[359652782,1746221438247,-450.0,0.00019713,2]
[359652783,1746221438255,-500.0,0.00019713,2]
[359652784,1746221438262,-153.04257206,0.00019713,2]
[359652785,1746221438271,-450.0,0.00019713,2]
[359652786,1746221438278,-450.0,0.00019713,2]
[359652787,1746221438286,-450.0,0.00019713,2]
[359652788,1746221438294,-450.0,0.00019713,2]
[359652789,1746221438302,-450.0,0.00019713,2]
[359652790,1746221438311,-535.47,0.00019713,2]
[359652791,1746221438321,-450.0,0.00019713,2]
[359652792,1746221438329,-450.0,0.00019713,2]
[359652793,1746221438337,-450.0,0.00019713,2]
[359652794,1746221438346,-450.0,0.00019713,2]
[359652795,1746221438355,-393.71498273,0.00019713,2]
[359652800,1746221439955,-56.28501727,0.00019713,2]
[359652801,1746221439965,-500.0,0.00019713,2]
[359652802,1746221439974,-381.96434446,0.00019713,2]
[359652803,1746221439985,-68.03565554,0.00019713,2]
[359652804,1746221439994,-450.0,0.00019713,2]
[359652805,1746221440003,-68.39754453,0.00019713,2]
[359652806,1746221440391,-381.60245547,0.00019713,2]
[359652807,1746221440401,-450.0,0.00019713,2]
[359652808,1746221440410,-526.12,0.00019713,2]
[359652809,1746221440419,-493.28,0.00019713,2]
[359652810,1746221440428,-450.0,0.00019713,2]
[359652811,1746221440437,-1015.7,0.00019713,2]
[359652812,1746221440447,-1175.39,0.00019713,2]
[359652813,1746221440456,-5009.93,0.00019713,2]
[359652814,1746221440465,-450.0,0.00019713,2]
[359652815,1746221440474,-450.0,0.00019713,2]
[359652816,1746221440484,-450.0,0.00019713,2]
[359652817,1746221440493,-450.0,0.00019713,2]
[359652818,1746221440502,-450.0,0.00019713,2]
[359652819,1746221440514,-450.0,0.00019713,2]
[359652820,1746221440523,-450.0,0.00019713,2]
[359652821,1746221440533,-450.0,0.00019713,2]
[359652822,1746221440542,-463.52,0.00019713,2]
[359652823,1746221440553,-894.130531,0.00019713,2]
[359652824,1746221440562,-528.89,0.00019713,2]
[359652825,1746221440572,-450.0,0.00019713,2]
[359652826,1746221440582,-450.0,0.00019713,2]
[359652827,1746221440592,-1682.33,0.00019713,2]
[359652828,1746221440601,-450.0,0.00019713,2]
[359652829,1746221440611,-450.0,0.00019713,2]
[359652830,1746221440620,-450.0,0.00019713,2]
[359652831,1746221440629,-553.47632,0.00019713,2]
[359652832,1746221440638,-1194.97,0.00019713,2]
[359652833,1746221440648,-450.0,0.00019713,2]
[359652834,1746221440657,-450.0,0.00019713,2]
[359652835,1746221440667,-450.0,0.00019713,2]
[359652836,1746221440676,-450.0,0.00019713,2]